bitfinex/quotes_SOLUSD_20250527
["timestamp","ask_amount","ask_price","bid_price","bid_amount"]
[1748339098884,1.9968051,175.28,175.21,49.1644]
[1748339098885,12.4591951,175.26,175.21,6.4044]
[1748339099064,12.4591951,175.27,175.22,42.74]
[1748339099262,0.57058085,175.26,175.23,34.22]
[1748339101173,1.9968051,175.28,175.23,34.22]
[1748339101369,14.4560002,175.28,175.23,34.22]
[1748339101696,12.4591951,175.27,175.23,34.22]
[1748339102203,12.4591951,175.24,175.13,92.16]
[1748339102403,4.84938383,175.28,175.19,44.12]
[1748339102404,149.1,175.27,175.19,44.12]
[1748339102687,149.1,175.27,175.22,12.4591951]
[1748339102889,161.5591951,175.27,175.23,34.22]
[1748339103189,0.57058085,175.26,175.23,34.22]
[1748339103395,13.02977595,175.26,175.23,34.22]
[1748339105186,0.57058085,175.26,175.23,34.22]
[1748339105982,13.02977595,175.26,175.23,34.22]
[1748339106377,0.57058085,175.26,175.23,34.22]
[1748339106583,13.02977595,175.26,175.23,34.22]
[1748339108392,12.4591951,175.24,175.19,44.12]
[1748339108688,1.99703297,175.26,175.2,34.22]
[1748339108689,12.4591951,175.23,175.2,34.22]
[1748339109289,12.4591951,175.24,175.2,34.22]
[1748339109590,12.4591951,175.24,175.19,44.12]
[1748339109794,12.4591951,175.24,175.21,34.22]
[1748339110394,0.57067853,175.23,175.21,34.22]
[1748339110894,1.99737487,175.23,175.19,56.5791951]
[1748339111098,1.99737487,175.23,175.22,34.22]
[1748339111597,0.57067853,175.23,175.22,34.22]
[1748339112372,0.57064597,175.24,175.22,34.22]
[1748339115201,1.99726089,175.24,175.23,34.22]
[1748339118305,0.57064597,175.24,175.23,34.22]
[1748339120209,0.5706134,175.25,175.23,34.22]
[1748339121383,1.99703297,175.26,175.23,34.22]
[1748339121791,0.57058085,175.26,175.25,12.4591951]
[1748339123503,1.99675082,175.29,175.25,12.4591951]
[1748339123690,1.99675082,175.29,175.26,46.6791951]
[1748339125012,0.57048319,175.29,175.28,12.4591951]
[1748339125707,0.57041811,175.31,175.28,12.4591951]
[1748339125911,0.57041811,175.31,175.29,34.22]
[1748339126112,13.02961321,175.31,175.29,34.22]
[1748339126608,13.02961321,175.31,175.26,56.5991951]
[1748339126609,161.5591951,175.3,175.26,44.14]
[1748339126796,12.4591951,175.27,175.26,44.14]
[1748339127006,12.4591951,175.28,175.26,44.14]
[1748339127197,12.4591951,175.28,175.26,78.36]
[1748339127707,0.57054829,175.27,175.26,78.36]
[1748339128117,0.57054829,175.27,175.26,97.00964886]
[1748339129614,0.57048319,175.29,175.27,18.64964886]
[1748339129999,0.57048319,175.29,175.27,31.10884396]
[1748339131609,1.9964634,175.31,175.27,31.10884396]
[1748339131806,1.9964634,175.31,175.28,12.4591951]
[1748339132009,0.57041811,175.31,175.29,34.22]
[1748339132985,0.57038558,175.32,175.29,34.22]
[1748339133710,0.57038558,175.32,175.3,18.64964886]
[1748339135101,0.57035304,175.33,175.3,31.10884396]
[1748339136521,1.42558252,175.37,175.32,12.4591951]
[1748339136721,1.42558252,175.37,175.3,37.23754396]
[1748339136722,0.57005915,175.43,175.39,26.0]
[1748339136918,0.57005655,175.43,175.4,60.22]
[1748339137094,0.57006091,175.42,175.4,60.22]
[1748339137300,0.57003543,175.43,175.4,91.32884396]
[1748339137512,8.11782485,175.46,175.4,91.32884396]
[1748339137513,20.57701995,175.46,175.4,91.32884396]
[1748339137823,8.68778095,175.46,175.4,138.68884396]
[1748339138028,0.56998788,175.45,175.41,18.64964886]
[1748339138341,1.42450478,175.5,175.41,18.64964886]
[1748339138342,0.56986551,175.48,175.41,18.64964886]
[1748339138521,0.56973564,175.52,175.47,12.4591951]
[1748339138730,0.56973564,175.52,175.48,34.22]
[1748339139251,12.80971698,175.54,175.51,26.0]
[1748339139549,12.80971698,175.54,175.52,34.22]
[1748339139723,8.74606712,175.54,175.53,12.4591951]
[1748339139912,0.56951335,175.59,175.54,18.64964886]
[1748339140113,0.56951335,175.59,175.55,12.4591951]
[1748339140417,0.56951335,175.59,175.56,34.22]
[1748339140848,0.5693788,175.63,175.58,18.64964886]
[1748339141143,1.42339599,175.64,175.56,34.22]
[1748339141144,0.56944365,175.61,175.56,34.22]
[1748339141732,0.56944365,175.61,175.57,34.2]
[1748339142253,1.99305278,175.61,175.57,34.2]
[1748339142458,12.4591951,175.58,175.57,34.2]
[1748339142741,1.99305278,175.61,175.56,34.2]
[1748339143317,12.4591951,175.58,175.56,34.2]
[1748339143620,1.99305278,175.61,175.56,34.2]
[1748339143851,1.99305278,175.61,175.51,66.36]
[1748339144019,12.4591951,175.53,175.52,34.18]
[1748339144219,12.4591951,175.54,175.52,34.18]
[1748339144437,12.4591951,175.6,175.52,34.18]
[1748339144825,12.4591951,175.54,175.52,34.18]
[1748339145148,12.4591951,175.6,175.52,34.18]
[1748339145149,13.02889828,175.53,175.52,34.18]
[1748339146267,0.56970318,175.53,175.52,52.82964886]
[1748339146453,13.02889828,175.53,175.52,52.82964886]
[1748339146649,0.56970318,175.53,175.51,66.36]
[1748339146871,13.02889828,175.53,175.52,34.18]
[1748339147171,12.4591951,175.53,175.52,34.18]
[1748339147467,1.42387906,175.58,175.52,34.18]
[1748339147468,1.42387906,175.58,175.53,18.64964886]
[1748339147644,12.4591951,175.55,175.53,18.64964886]
[1748339147843,1.42387906,175.58,175.52,34.18]
[1748339148063,12.4591951,175.53,175.52,52.82964886]
[1748339148266,1.42387906,175.58,175.52,52.82964886]
[1748339148458,12.4591951,175.54,175.52,52.82964886]
[1748339148659,0.56950851,175.59,175.53,18.64964886]
[1748339148859,0.56950851,175.59,175.53,44.64964886]
[1748339149050,0.56950851,175.59,175.55,18.64964886]
[1748339149370,12.4591951,175.59,175.57,18.64964886]
[1748339149669,12.4591951,175.59,175.58,34.18]
[1748339150245,12.4591951,175.59,175.56,26.0]
[1748339150565,12.4591951,175.57,175.54,26.0]
[1748339150746,12.4591951,175.55,175.53,68.4]
[1748339150936,12.4591951,175.54,175.53,102.58]
[1748339151144,13.02886583,175.54,175.53,68.4]
[1748339151347,13.02886583,175.54,175.52,34.18]
[1748339151554,12.4591951,175.53,175.52,34.18]
[1748339151752,12.4591951,175.53,175.48,7.36953613]
[1748339151970,12.4591951,175.49,175.48,0.76903613]
[1748339152151,12.4591951,175.49,175.48,34.94903613]
[1748339152745,12.41848423,175.49,175.48,34.94903613]
[1748339153367,12.98831726,175.49,175.48,34.94903613]
[1748339153960,20.43918089,175.49,175.48,34.94903613]
[1748339154266,20.43918089,175.49,175.48,53.59868499]
[1748339154466,0.56980386,175.5,175.49,18.64964886]
[1748339154774,20.43915172,175.5,175.49,18.64964886]
[1748339155282,115.42656988,175.65,175.49,18.64964886]
[1748339155283,5.69313976,175.65,175.49,18.64964886]
[1748339155576,19.86934786,175.53,175.49,18.64964886]
[1748339156284,0.14216157,175.61,175.51,44.64964886]
[1748339156780,19.86934786,175.52,175.51,44.64964886]
[1748339157347,20.4390835,175.52,175.48,34.94903613]
[1748339157552,0.56973564,175.52,175.49,18.64964886]
[1748339157980,19.86934786,175.51,175.49,18.64964886]
[1748339158178,0.56973564,175.52,175.49,18.64964886]
[1748339158488,19.86934786,175.53,175.49,18.64964886]
[1748339158846,19.86934786,175.51,175.5,26.0]
[1748339159047,0.56970306,175.54,175.51,18.64964886]
[1748339159247,19.86934786,175.53,175.51,18.64964886]
[1748339159662,4.84063208,175.6,175.51,18.64964886]
[1748339159973,19.86934786,175.53,175.51,18.64964886]
[1748339160355,19.86934786,175.54,175.51,18.64964886]
[1748339160750,0.56970318,175.53,175.51,18.64964886]
[1748339161064,20.43905104,175.53,175.51,18.64964886]
[1748339161676,19.86934786,175.52,175.49,18.64964886]
[1748339162249,1.99271236,175.64,175.52,44.64964886]
[1748339162452,4.83944431,175.64,175.52,44.64964886]
[1748339162989,19.86934786,175.59,175.52,44.64964886]
[1748339163354,30.83944431,175.64,175.52,44.64964886]
[1748339163565,19.86934786,175.59,175.52,44.64964886]
[1748339163789,19.86934786,175.57,175.52,44.64964886]
[1748339163984,30.83944431,175.64,175.52,44.64964886]
[1748339164195,19.86934786,175.58,175.52,44.64964886]
[1748339164786,30.83944431,175.64,175.52,44.64964886]
[1748339165278,19.86934786,175.58,175.52,44.64964886]
[1748339165854,0.56960583,175.56,175.52,44.64964886]
[1748339167088,1.42372089,175.6,175.54,18.64964886]
[1748339167250,1.42372089,175.6,175.56,18.64964886]
[1748339167567,20.43885637,175.59,175.56,18.64964886]
[1748339167971,19.86934786,175.58,175.56,18.64964886]
[1748339168518,27.42372089,175.6,175.56,18.64964886]
[1748339168683,19.86934786,175.57,175.55,18.64964886]
[1748339168882,19.86934786,175.57,175.56,34.16]
[1748339169083,27.42372089,175.6,175.56,34.16]
[1748339169302,19.86934786,175.57,175.56,34.16]
[1748339170525,149.1,175.63,175.57,18.64964886]
[1748339170737,0.56941122,175.62,175.57,18.64964886]
[1748339171023,19.86934786,175.58,175.57,18.64964886]
[1748339171725,19.86934786,175.59,175.57,18.64964886]
[1748339172019,0.56957338,175.57,175.56,18.64964886]
[1748339172236,20.4388963,175.58,175.56,52.80964886]
[1748339173211,19.86934786,175.57,175.55,66.3]
[1748339173412,19.86934786,175.57,175.56,34.16]
[1748339173791,0.56954844,175.58,175.56,18.64964886]
[1748339173995,19.86934786,175.6,175.57,34.16]
[1748339174200,19.86934786,175.58,175.57,34.16]
[1748339175927,12.40619293,175.58,175.57,34.16]
[1748339176318,12.97573387,175.58,175.57,34.16]
[1748339179340,12.97573387,175.58,175.51,26.14216157]
[1748339179515,0.56967073,175.54,175.52,84.92964886]
[1748339179838,0.56967073,175.54,175.53,34.16]
[1748339180218,12.97586366,175.54,175.52,66.28]
[1748339180433,12.40619293,175.53,175.52,84.92964886]
[1748339180637,12.40619293,175.53,175.52,119.08964886]
[1748339181520,12.97589611,175.53,175.52,84.92964886]
[1748339181737,12.97589611,175.53,175.52,66.28]
[1748339181913,12.97589611,175.53,175.52,100.44]
[1748339182248,0.56970318,175.53,175.52,100.44]
[1748339182556,4.06364986,175.64,175.53,1.565]
[1748339182710,12.40619293,175.6,175.55,18.64964886]
[1748339183115,12.40619293,175.59,175.55,18.64964886]
[1748339183341,12.40619293,175.6,175.55,18.64964886]
[1748339183540,12.40619293,175.6,175.55,24.34598779]
[1748339183731,12.40619293,175.61,175.55,24.34598779]
[1748339185230,12.97561575,175.62,175.55,24.34598779]
[1748339185945,20.41169605,175.62,175.55,24.34598779]
[1748339187852,19.84227323,175.61,175.55,24.34598779]
[1748339188429,19.84227323,175.61,175.55,18.64964886]
[1748339188647,19.84227323,175.6,175.55,18.64964886]
[1748339188821,1.42324293,175.66,175.55,18.64964886]
[1748339189022,19.84227323,175.62,175.55,18.64964886]
[1748339190234,0.56944365,175.61,175.55,18.64964886]
[1748339190747,19.41171688,175.62,175.55,18.64964886]
[1748339191745,19.84227323,175.62,175.55,18.64964886]
[1748339192852,0.56944365,175.61,175.55,18.64964886]
[1748339193052,0.56944365,175.61,175.55,24.34596393]
[1748339193755,0.56944365,175.61,175.55,18.64964886]
[1748339197251,19.8416348,175.62,175.58,18.64964886]
[1748339197450,19.8416348,175.62,175.59,34.16]
[1748339198356,1.9927451,175.64,175.6,18.64964886]
[1748339198558,19.8416348,175.63,175.6,18.64964886]
[1748339199065,1.9927451,175.64,175.6,18.64964886]
[1748339199248,19.8416348,175.63,175.6,18.64964886]
[1748339200562,0.56941122,175.62,175.6,18.64964886]
[1748339203567,0.56941122,175.62,175.6,78.92964886]
[1748339204070,21.8343799,175.64,175.6,78.92964886]
[1748339206889,1.9927451,175.64,175.6,78.92964886]
[1748339207189,21.8343799,175.64,175.6,78.92964886]
[1748339207981,12.40131059,175.63,175.6,60.28]
[1748339208370,12.40131059,175.62,175.6,60.28]
[1748339208672,1.9927451,175.64,175.61,34.16]
[1748339208874,12.40131059,175.62,175.59,60.28]
[1748339209079,4.83947705,175.64,175.61,34.16]
[1748339209460,4.83947705,175.64,175.6,34.16]
[1748339209676,149.1,175.63,175.6,34.16]
[1748339209982,149.1,175.63,175.55,60.28]
[1748339210157,12.40131059,175.59,175.58,34.16]
[1748339211591,12.9708191,175.59,175.58,34.16]
[1748339213066,14.39459038,175.59,175.58,34.16]
[1748339214003,14.39459038,175.59,175.55,60.28]
[1748339214192,14.39459038,175.59,175.56,34.16]
[1748339214393,1.42377128,175.59,175.56,34.16]
[1748339214587,13.82508187,175.59,175.56,34.16]
[1748339215084,13.82508187,175.59,175.55,60.28]
[1748339215281,12.40131059,175.58,175.56,34.16]
[1748339216488,0.56957338,175.57,175.56,34.16]
[1748339218711,0.56954094,175.58,175.56,34.16]
[1748339219709,12.40131059,175.58,175.57,34.16]
[1748339221720,0.56957338,175.57,175.55,60.28]
[1748339221919,0.56957338,175.57,175.56,34.16]
[1748339222233,12.97088397,175.57,175.56,34.16]
[1748339222414,12.97088397,175.57,175.55,60.28]
[1748339222619,0.56957338,175.57,175.56,34.16]
[1748339223714,13.82508187,175.59,175.56,34.16]
[1748339223715,0.56954094,175.58,175.56,34.16]
[1748339224911,12.97085153,175.58,175.56,34.16]
[1748339225914,12.40131059,175.57,175.56,34.16]
[1748339227740,12.97088397,175.57,175.56,34.16]
[1748339229220,0.56957338,175.57,175.56,34.16]
[1748339232039,12.97088397,175.57,175.56,34.16]
[1748339232947,14.39481744,175.57,175.52,18.64964886]
[1748339233150,12.40131059,175.56,175.53,34.16]
[1748339233646,12.40131059,175.56,175.54,34.16]
[1748339234327,12.40131059,175.56,175.52,18.64964886]
[1748339234527,1.99350685,175.57,175.51,56.77308228]
[1748339234528,12.40131059,175.55,175.51,56.77308228]
[1748339234751,0.56970318,175.53,175.52,34.16]
[1748339235822,12.97101377,175.53,175.51,56.77308228]
[1748339236031,0.56970318,175.53,175.52,34.16]
[1748339236237,0.56970318,175.53,175.51,56.77308228]
[1748339236436,0.56970318,175.53,175.52,34.16]
[1748339237358,12.97101377,175.53,175.52,34.16]
[1748339237662,0.56970318,175.53,175.51,56.77308228]
[1748339237866,0.56970318,175.53,175.52,34.16]
[1748339238843,12.97101377,175.53,175.52,34.16]
[1748339239051,0.56970318,175.53,175.52,34.16]
[1748339241751,12.97101377,175.53,175.52,34.16]
[1748339242346,0.56970318,175.53,175.51,0.57308228]
[1748339242562,12.97101377,175.53,175.52,34.16]
[1748339244168,12.97101377,175.53,175.51,0.57308228]
[1748339244351,12.97101377,175.53,175.52,34.16]
[1748339246465,12.97101377,175.53,175.51,0.57308228]
[1748339246673,0.56970318,175.53,175.52,34.16]
[1748339246840,12.97101377,175.53,175.52,34.16]
[1748339247978,0.56970318,175.53,175.52,34.16]
[1748339248455,12.97101377,175.53,175.52,34.16]
[1748339251053,12.97101377,175.53,175.51,0.57308228]
[1748339251258,12.97101377,175.53,175.52,34.16]
[1748339255852,12.97101377,175.53,175.51,0.57308228]
[1748339256053,12.40131059,175.52,175.51,0.57308228]
[1748339256252,12.40131059,175.52,175.51,34.75308228]
[1748339257579,12.97104623,175.52,175.51,34.75308228]
[1748339259984,0.56973564,175.52,175.51,34.75308228]
[1748339260566,8.51567932,175.52,175.51,34.75308228]
[1748339261466,0.56973564,175.52,175.51,34.75308228]
[1748339265792,0.56963827,175.55,175.51,61.34867482]
[1748339265964,0.56963827,175.55,175.53,7.94594368]
[1748339266168,0.56963827,175.55,175.54,34.18]
[1748339266401,1.99373396,175.55,175.51,19.22273114]
[1748339266599,1.99373396,175.55,175.52,34.18]
[1748339266600,7.94594368,175.53,175.52,34.18]
[1748339267282,8.51564686,175.53,175.52,34.18]
[1748339267673,0.56970318,175.53,175.52,34.18]
[1748339267872,8.51564686,175.53,175.52,34.18]
[1748339272206,7.94594368,175.53,175.52,34.18]
[1748339274406,8.51564686,175.53,175.52,34.18]
[1748339275906,149.1,175.56,175.52,34.18]
[1748339276093,4.06364986,175.58,175.55,7.94594368]
[1748339276289,4.06364986,175.58,175.56,34.18]
[1748339276492,4.63319561,175.58,175.56,34.18]
[1748339276813,12.57913929,175.58,175.53,14.05404368]
[1748339277111,8.51548943,175.58,175.54,52.82964886]
[1748339277795,0.56954575,175.58,175.54,52.82964886]
[1748339278106,0.56954575,175.58,175.54,60.77559254]
[1748339279506,7.94594368,175.59,175.55,34.16]
[1748339279992,0.56954094,175.58,175.55,42.10594368]
[1748339280783,0.56941122,175.62,175.57,7.94594368]
[1748339281129,0.56941122,175.62,175.58,7.94594368]
[1748339281428,0.56941122,175.62,175.59,34.16]
[1748339281631,7.94594368,175.61,175.59,34.16]
[1748339281846,0.56941122,175.62,175.59,34.16]
[1748339284305,12.4021556,175.6,175.53,6.1081]
[1748339284507,12.4021556,175.59,175.54,31.05180446]
[1748339284835,12.4021556,175.59,175.55,34.16]
[1748339285432,12.4021556,175.59,175.56,34.16]
[1748339285841,1.99293929,175.62,175.56,34.16]
[1748339286212,12.4021556,175.59,175.56,34.16]
[1748339286426,12.4021556,175.6,175.56,34.16]
[1748339287436,1.42352807,175.62,175.56,34.16]
[1748339287604,12.4021556,175.6,175.56,34.16]
[1748339288816,0.56950851,175.59,175.56,34.16]
[1748339289532,149.66950851,175.59,175.56,34.16]
[1748339291434,149.66950851,175.59,175.55,12.4021556]
[1748339291641,149.66950851,175.59,175.56,34.16]
[1748339292738,162.07166411,175.59,175.56,34.16]
[1748339294643,12.4021556,175.58,175.57,34.16]
[1748339295526,163.49543539,175.59,175.57,34.16]
[1748339296945,151.09327979,175.59,175.57,34.16]
[1748339297326,163.49543539,175.59,175.57,34.16]
[1748339298446,12.4021556,175.58,175.57,34.16]
[1748339299457,163.49543539,175.59,175.57,34.16]
[1748339300463,12.4021556,175.58,175.52,18.64964886]
[1748339300754,151.09327979,175.59,175.52,31.05180446]
[1748339300755,12.4021556,175.56,175.52,31.05180446]
[1748339300962,12.4021556,175.56,175.53,34.16]
[1748339301135,12.4021556,175.56,175.52,18.64964886]
[1748339301338,12.4021556,175.55,175.53,34.16]
[1748339301739,151.09327979,175.59,175.54,34.16]
[1748339301939,12.4021556,175.55,175.54,34.16]
[1748339302454,12.97179387,175.55,175.54,34.16]
[1748339303355,0.56963827,175.55,175.54,34.16]
[1748339303553,12.97179387,175.55,175.54,34.16]
[1748339304032,8.51338431,175.55,175.54,34.16]
[1748339304533,0.56963827,175.55,175.54,34.16]
[1748339305136,0.56963827,175.55,175.52,18.64964886]
[1748339305335,0.56963827,175.55,175.53,34.16]
[1748339307260,1.42401517,175.56,175.53,34.16]
[1748339307456,9.36776121,175.56,175.53,34.16]
[1748339308261,9.93736704,175.56,175.53,34.16]
[1748339312152,9.93736704,175.56,175.52,18.64964886]
[1748339312360,9.93736704,175.56,175.53,34.16]
[1748339314271,1.993621,175.56,175.53,34.16]
[1748339314572,9.36776121,175.56,175.53,34.16]
[1748339315034,7.94374604,175.55,175.52,18.64964886]
[1748339315235,7.94374604,175.55,175.53,34.16]
[1748339315656,1.42401517,175.56,175.51,0.57308228]
[1748339315657,7.94374604,175.54,175.51,0.57308228]
[1748339315852,7.94374604,175.53,175.51,0.57308228]
[1748339316060,7.94374604,175.53,175.52,34.16]
[1748339316438,0.56970318,175.53,175.52,34.16]
[1748339317559,9.93770718,175.53,175.49,24.70894886]
[1748339317770,9.93770718,175.53,175.5,34.16]
[1748339319080,1.99396114,175.53,175.5,42.10374604]
[1748339319584,1.99396114,175.53,175.5,34.16]
[1748339319755,1.99396114,175.53,175.51,34.16]
[1748339322976,9.368004,175.53,175.51,34.16]
[1748339323271,9.368004,175.53,175.52,34.16]
[1748339323876,1.42425796,175.53,175.52,34.16]
[1748339325477,1.99396114,175.53,175.52,34.16]
[1748339325692,9.93770718,175.53,175.52,34.16]
[1748339327614,1.42425796,175.53,175.52,34.18]
[1748339328319,27.42425796,175.53,175.52,34.18]
[1748339330013,27.99396114,175.53,175.52,34.18]
[1748339330622,35.93770718,175.53,175.52,34.18]
[1748339331731,27.99396114,175.53,175.52,34.18]
[1748339332421,35.93770718,175.53,175.52,34.18]
[1748339332589,27.99396114,175.53,175.52,34.18]
[1748339332791,27.99396114,175.53,175.49,26.5933949]
[1748339332990,27.99396114,175.53,175.5,34.18]
[1748339335321,35.93770718,175.53,175.5,34.18]
[1748339336115,27.99396114,175.53,175.5,34.18]
[1748339337110,27.99396114,175.53,175.49,26.5933949]
[1748339337426,33.94374604,175.5,175.45,18.64964886]
[1748339337607,26.0,175.47,175.42,82.0]
[1748339337818,7.94374604,175.46,175.43,34.18]
[1748339338013,26.0,175.47,175.43,18.64964886]
[1748339338014,33.94374604,175.47,175.43,18.64964886]
[1748339338214,33.94374604,175.47,175.44,34.18]
[1748339339525,0.56993046,175.46,175.45,34.18]
[1748339343833,8.5136765,175.46,175.45,34.18]
[1748339344837,27.42473937,175.48,175.45,34.18]
[1748339345022,35.36848541,175.48,175.45,34.18]
[1748339345222,7.94374604,175.47,175.45,34.18]
[1748339345737,27.42473937,175.48,175.45,34.18]
[1748339346336,35.36848541,175.48,175.45,34.18]
[1748339346537,7.94374604,175.47,175.45,34.18]
[1748339347118,0.56993046,175.46,175.45,34.18]
[1748339347430,0.56993046,175.46,175.45,52.82964886]
[1748339347629,0.56983303,175.49,175.46,18.64964886]
[1748339348148,7.94374604,175.47,175.43,18.64964886]
[1748339348355,7.94374604,175.47,175.44,34.18]
[1748339348541,7.94374604,175.48,175.44,34.18]
[1748339348917,7.94374604,175.47,175.44,34.18]
[1748339349121,0.56993046,175.46,175.44,34.18]
[1748339350068,0.56993046,175.46,175.44,42.12374604]
[1748339350558,0.56993046,175.46,175.45,34.18]
[1748339351440,0.56989798,175.47,175.45,34.18]
[1748339352555,7.94374604,175.47,175.45,34.18]
[1748339352927,7.94374604,175.47,175.46,34.18]
[1748339353939,8.51364402,175.47,175.42,78.2333949]
[1748339354137,8.51364402,175.47,175.44,18.64964886]
[1748339354342,7.94374604,175.46,175.45,34.18]
[1748339355356,8.5136765,175.46,175.45,34.18]
[1748339355955,0.56993046,175.46,175.45,34.18]
[1748339359550,1.42474497,175.47,175.45,34.18]
[1748339359755,9.36849101,175.47,175.45,34.18]
[1748339360942,9.93838899,175.47,175.45,34.18]
[1748339363044,1.42474497,175.47,175.45,34.18]
[1748339363245,9.36849101,175.47,175.45,34.18]
[1748339363649,1.42474497,175.47,175.45,34.18]
[1748339364969,0.56983303,175.49,175.46,18.64964886]
[1748339365270,0.56983303,175.49,175.46,26.5933949]
[1748339366774,7.94374604,175.48,175.46,18.64964886]
[1748339366966,8.51357907,175.49,175.46,18.64964886]
[1748339367266,8.51357907,175.49,175.47,34.18]
[1748339367485,0.56983303,175.49,175.47,34.18]
[1748339373487,0.56983303,175.49,175.48,18.64964886]
[1748339374288,0.56980056,175.5,175.48,18.64964886]
[1748339378294,0.56980056,175.5,175.48,26.5933949]
[1748339379489,0.5697681,175.51,175.48,26.5933949]
[1748339381787,0.56973564,175.52,175.48,26.5933949]
[1748339382167,0.56973564,175.52,175.49,7.94374604]
[1748339382367,0.56973564,175.52,175.5,34.18]
[1748339383802,158.46798862,175.54,175.5,34.18]
[1748339383803,0.56970318,175.53,175.5,34.18]
[1748339386209,8.51344922,175.53,175.5,34.18]
[1748339387084,0.56970318,175.53,175.5,34.18]
[1748339388508,0.56970318,175.53,175.5,42.12374604]
[1748339388803,0.56970318,175.53,175.51,18.64964886]
[1748339389181,0.56965927,175.55,175.51,26.5933949]
[1748339391007,0.56965927,175.55,175.53,7.94374604]
[1748339391209,0.56965927,175.55,175.54,52.82964886]
[1748339391504,0.56965927,175.55,175.54,34.18]
[1748339391707,8.51340531,175.55,175.54,34.18]
[1748339400220,9.937501,175.55,175.48,32.3022]
[1748339400405,7.94374604,175.53,175.5,46.1]
[1748339400605,7.94374604,175.52,175.51,34.16]
[1748339400804,7.94374604,175.52,175.48,46.1]
[1748339401017,7.94374604,175.49,175.48,46.1]
[1748339401357,7.94374604,175.51,175.48,80.26]
[1748339402162,0.56980056,175.5,175.48,80.26]
[1748339403047,8.5135466,175.5,175.48,80.26]
[1748339403354,7.94374604,175.49,175.48,80.26]
[1748339404354,8.51357907,175.49,175.48,80.26]
[1748339405467,0.56983303,175.49,175.48,80.26]
[1748339408280,7.94722195,175.49,175.48,80.26]
[1748339409074,7.94722195,175.5,175.48,80.26]
[1748339409544,0.56983303,175.49,175.48,80.26]
[1748339410841,8.51705498,175.49,175.48,80.26]
[1748339411669,7.94722195,175.5,175.48,80.26]
[1748339414571,0.56983303,175.49,175.48,34.16]
[1748339415470,8.51705498,175.49,175.48,34.16]
[1748339419666,7.94722195,175.5,175.48,34.18]
[1748339419967,1.99413227,175.52,175.48,34.18]
[1748339420274,7.94722195,175.51,175.48,34.18]
[1748339421071,7.94722195,175.5,175.48,34.18]
[1748339421673,0.56980056,175.5,175.48,34.18]
[1748339426091,7.94722195,175.5,175.48,34.18]
[1748339427182,0.56983303,175.49,175.48,52.82964886]
[1748339428059,0.56983303,175.49,175.48,34.18]
[1748339433780,0.56980056,175.5,175.48,34.18]
[1748339433980,8.51702251,175.5,175.48,34.18]
[1748339435485,7.94722195,175.49,175.48,34.18]
[1748339435783,7.94722195,175.49,175.47,18.64964886]
[1748339435974,7.94722195,175.49,175.48,34.18]
[1748339437890,8.51705498,175.49,175.48,34.18]
[1748339438187,0.56983303,175.49,175.48,34.18]
[1748339442192,7.94722195,175.51,175.48,34.18]
[1748339442193,0.56980056,175.5,175.48,34.18]
[1748339443389,7.94722195,175.5,175.48,34.18]
[1748339445397,1.99413227,175.52,175.48,34.18]
[1748339445707,0.56973564,175.52,175.49,18.64964886]
[1748339447298,0.56971162,175.53,175.49,18.64964886]
[1748339449510,0.56960583,175.56,175.49,46.24074886]
[1748339449678,0.56960583,175.56,175.49,52.72484886]
[1748339450004,8.51682778,175.56,175.49,52.72484886]
[1748339451500,0.56960583,175.56,175.49,52.72484886]
[1748339451679,0.56960583,175.56,175.49,58.42316261]
[1748339452289,0.56960583,175.56,175.5,0.14216157]
[1748339454009,0.56960583,175.56,175.51,18.64964886]
[1748339454207,0.56960583,175.56,175.53,18.64964886]
[1748339454394,0.56960583,175.56,175.55,18.64964886]
[1748339454786,0.56957338,175.57,175.55,18.64964886]
[1748339455093,0.56957338,175.57,175.56,34.18]
[1748339456410,9.37113717,175.58,175.56,34.18]
[1748339458192,1.42391522,175.58,175.56,34.18]
[1748339458501,9.94067811,175.58,175.56,34.18]
[1748339458709,8.51676289,175.58,175.56,34.18]
[1748339460105,0.56954094,175.58,175.56,34.18]
[1748339461100,0.56950851,175.59,175.57,18.64964886]
[1748339462297,8.51673046,175.59,175.57,18.64964886]
[1748339463385,0.56950851,175.59,175.57,18.64964886]